fUST/lending_fUST_20240105
["ID","MTS","AMOUNT","RATE_DAILY","PERIOD"]
[310249877,1704423042650,-302.46119838,0.00030998,4]
[310249878,1704423042659,-3938.19239057,0.00030998,4]
[310249879,1704423042669,-434.50301936,0.00030999,4]
[310249880,1704423042678,-692.26345074,0.00030999,4]
[310249881,1704423042688,-4804.34198324,0.00030999,4]
[310249882,1704423042697,-791.04994583,0.00030999,4]
[310249883,1704423042707,-455.62256249,0.00030999,2]
[310249884,1704423042716,-500.0,0.00030999,2]
[310249885,1704423042725,-354.40982112,0.00030999,2]
[310249886,1704423042735,-31364.36355753,0.00031,4]
[310249938,1704423045594,-76.98447019,0.00031,4]
[310249939,1704423045604,-307.61781493,0.00031725,2]
[310249940,1704423045615,-171.666619,0.00031758,2]
[310249941,1704423045625,-200.0,0.00032449,15]
[310249942,1704423045634,-404.7689946,0.00033386,2]
[310249943,1704423045648,-5040.56342431,0.00033386,2]
[310250001,1704423046707,-757.11713402,0.00033386,2]
[310250475,1704424146100,-154.81422293,0.00020869,4]
[310250476,1704424146121,-264.60266705,0.0002087,2]
[310250477,1704424146140,-343.61348339,0.00020871,2]
[310250478,1704424146161,-1019.99242369,0.00020871,2]
[310250479,1704424146181,-564.49308346,0.0002088,2]
[310250480,1704424146202,-171.96281558,0.00020894,2]
[310250481,1704424146223,-694.27793862,0.00020995,2]
[310250482,1704424146244,-3135.26090601,0.00021,2]
[310250483,1704424146265,-356.582183,0.00021288,2]
[310250484,1704424146285,-356.582183,0.00021288,2]
[310250485,1704424146306,-356.582183,0.00021288,2]
[310250486,1704424146327,-356.582183,0.00021288,2]
[310250487,1704424146347,-356.582183,0.00021288,2]
[310250488,1704424146368,-356.451259,0.0002151,2]
[310250489,1704424146390,-1759.12,0.00021574,3]
[310250490,1704424146409,-255.04884946,0.00021583,2]
[310250491,1704424146431,-78289.94835769,0.00021584,2]
[310250492,1704424146453,-24900.0,0.00021585,2]
[310250493,1704424146474,-3529.8293168,0.00021588,2]
[310250495,1704424146494,-205.348454,0.00021918,2]
[310250496,1704424146513,-3913.18170102,0.00022,2]
[310250497,1704424146533,-205.348454,0.000232,2]
[310250498,1704424146558,-200.0,0.00023416,7]
[310250499,1704424146578,-379.21185133,0.00023894,2]
[310250501,1704424146598,-508.50377759,0.00023994,2]
[310250502,1704424146618,-230.18795146,0.00023994,2]
[310250503,1704424146638,-200.98523964,0.00023994,2]
[310250504,1704424146657,-2027.50790733,0.00023995,2]
[310250505,1704424146678,-22803.470862,0.00023997,2]
[310250506,1704424146697,-11631.21342511,0.00023998,2]
[310250507,1704424146718,-205.348454,0.00024482,2]
[310250508,1704424146738,-173.945255,0.00024822,2]
[310250509,1704424146757,-679.56551195,0.00025,2]
[310250510,1704424146777,-379.21185131,0.00025396,2]
[310250511,1704424146797,-200.0,0.00025479,2]
[310250512,1704424146936,-280.0,0.00025758,7]
[310250513,1704424146960,-454.89181024,0.00025987,2]
[310250514,1704424146981,-946.0,0.00026,2]
[310250515,1704424147001,-379.21185131,0.00026897,2]
[310250516,1704424147021,-1264.0181923,0.000279,2]
[310250684,1704424232838,-154.82968734,0.00026809,4]
[310250685,1704424232849,-111.33298249,0.00027999,2]
[310250686,1704424232861,-1210.06095488,0.00027999,2]
[310250687,1704424232871,-344.4305603,0.00028,2]
[310250688,1704424232880,-379.21185131,0.00028399,2]
[310250689,1704424232890,-290.216036,0.0002846,2]
[310250690,1704424232900,-968.66415769,0.000289,2]
[310250691,1704424232909,-3103.63921168,0.00029,2]
[310250692,1704424232919,-65950.53889327,0.00029786,2]
[310250693,1704424232931,-1049.11047233,0.00029786,2]
[310250716,1704424238857,-343.61348339,0.00027998,2]
[310250718,1704424238866,-932.18,0.00029776,3]
[310250720,1704424238876,-945.03415602,0.00029785,2]
[310250722,1704424238885,-1029.24597412,0.00029785,2]
[310250724,1704424238894,-4944.68808717,0.00029786,2]
[310250727,1704424238910,-6345.61090492,0.00029786,2]
[310250729,1704424238922,-433.23535958,0.00029787,2]
[310250731,1704424238932,-361.94732479,0.00029787,2]
[310250733,1704424238941,-524.96234709,0.00029787,2]
[310250735,1704424238949,-11734.04701031,0.00029787,2]
[310250737,1704424238958,-2090.62355962,0.00029787,2]
[310250739,1704424238967,-188.06706125,0.00029787,2]
[310250741,1704424238978,-1564.98883234,0.00029787,2]
[310250743,1704424238987,-2032.04564268,0.00029787,2]
[310250745,1704424238996,-235.68021843,0.00029787,2]
[310250747,1704424239005,-2508.98219236,0.00029787,2]
[310250749,1704424239014,-262.83058618,0.00029787,2]
[310250751,1704424239024,-2097.73160257,0.00029788,2]
[310250753,1704424239033,-264.81601131,0.00029788,2]
[310250755,1704424239043,-722.22513102,0.00029788,2]
[310250757,1704424239053,-2075.57077097,0.00029789,2]
[310250759,1704424239062,-500.0,0.00029789,2]
[310250761,1704424239071,-406.10392925,0.00029789,2]
[310250763,1704424239080,-194.19129691,0.00029789,2]
[310250765,1704424239089,-430.45737481,0.00029789,2]
[310250767,1704424239098,-410.01302182,0.00029789,2]
[310250769,1704424239107,-161.30735013,0.00029789,2]
[310250771,1704424239116,-209540.83259918,0.0002979,7]
[310250773,1704424239125,-496.33210896,0.000298,5]
[310250775,1704424239134,-379.21185131,0.000299,2]
[310250777,1704424239143,-500.0,0.00029999,4]
[310250779,1704424239152,-322.33599443,0.00029999,4]
[310250781,1704424239161,-492.55134104,0.00029999,4]
[310250783,1704424239170,-380.14704887,0.00029999,4]
[310250785,1704424239179,-494.45115009,0.00029999,4]
[310250786,1704424239188,-500.0,0.00029999,4]
[310250788,1704424239198,-243.43593693,0.0003,4]
[310250790,1704424239209,-2750.21591567,0.0003,2]
[310250793,1704424239219,-1739.10193292,0.0003,2]
[310250795,1704424239229,-49849.98375736,0.0003,10]
[310250796,1704424239238,-6538.37354299,0.0003,4]
[310250798,1704424239247,-7029.07521928,0.0003,4]
[310250800,1704424239257,-685.71824329,0.0003,4]
[310250802,1704424239266,-638.77754188,0.0003,4]
[310250804,1704424239275,-1050.61771134,0.0003,4]
[310250806,1704424239284,-154.84515485,0.0003,4]
[310250808,1704424239293,-10000.0,0.0003,2]
[310250811,1704424239303,-230.0,0.0003,2]
[310250813,1704424239312,-197.12394252,0.0003013,2]
[310250815,1704424239321,-103841.88730562,0.00031,4]
[310250816,1704424239331,-202.413539,0.00031,2]
[310250818,1704424239341,-202.413539,0.00031,2]
[310250820,1704424239350,-151.0,0.00031,2]
[310250822,1704424239359,-112538.33439375,0.00032,10]
[310250824,1704424239368,-40406.0,0.00032,2]
[310250826,1704424239378,-202.413539,0.00032,2]
[310250828,1704424239387,-202.413539,0.00032,2]
[310250830,1704424239396,-151.0,0.00032,2]
[310250832,1704424239406,-4098.03422461,0.000325,15]
[310250834,1704424239415,-151.0,0.00032574,2]
[310250836,1704424239426,-200.0,0.00032756,15]
[310250838,1704424239437,-500.0,0.00032876,7]
[310250840,1704424239446,-179.57794694,0.00032876,7]
[310250842,1704424239456,-184.48173206,0.00032876,7]
[310250844,1704424239465,-620.83836257,0.00032876,7]
[310250846,1704424239474,-295.53080462,0.00032876,7]
[310250848,1704424239484,-500.0,0.00032876,7]
[310250850,1704424239493,-162.9201638,0.00032876,7]
[310250852,1704424239502,-546.50538693,0.00033,2]
[310250854,1704424239511,-155.08933732,0.00033208,4]
[310250856,1704424239521,-183.92224698,0.00033209,4]
[310250870,1704424239642,-202.413539,0.0003321,2]
[310250872,1704424239651,-202.413539,0.0003321,2]
[310250874,1704424239661,-151.0,0.0003321,2]
[310250876,1704424239670,-151.0,0.0003321,2]
[310250878,1704424239679,-4718.20272545,0.0003321,3]
[310250880,1704424239689,-15010.1881255,0.00033384,2]
[310250881,1704424239698,-394.98063132,0.00033385,4]
[310250883,1704424239707,-319.57313259,0.00033385,4]
[310250885,1704424239717,-154.81422293,0.00033386,4]
[310250887,1704424239726,-1819.97071756,0.00033386,5]
[310250889,1704424239736,-1024.60815917,0.00033386,2]
[310250890,1704424239745,-631.00418101,0.00033386,4]
[310250892,1704424239754,-1077.4927277,0.00033386,4]
[310250894,1704424239763,-282.23116997,0.00033386,3]
[310250896,1704424239772,-27134.47413847,0.00033386,14]
[310250898,1704424239781,-513.80939729,0.00033386,2]
[310250900,1704424239790,-202.413539,0.00033386,2]
[310250902,1704424239801,-202.413539,0.00033386,2]
[310250904,1704424239810,-151.0,0.00033386,2]
[310250906,1704424239820,-968.66415769,0.000339,2]
[310250907,1704424239830,-151.0,0.000339,2]
[310250909,1704424239839,-1000.0,0.00034,7]
[310250911,1704424239848,-1364.26955902,0.00034,2]
[310250913,1704424239858,-681.77305212,0.00034,4]
[310250915,1704424239867,-1204.26022632,0.00034107,2]
[310250917,1704424239877,-8417.31109727,0.000345,2]
[310250919,1704424239886,-4000.0,0.00034521,2]
[310250921,1704424239895,-2697.93363405,0.000348,12]
[310250923,1704424239904,-2650.27448344,0.00035,4]
[310250924,1704424239913,-7797.08454076,0.00035,4]
[310250926,1704424239926,-40000.0,0.00035,2]
[310250928,1704424239935,-62271.0,0.00035,2]
[310250930,1704424239944,-155.66713933,0.00035,6]
[310250932,1704424239954,-4280.0215874,0.00035,4]
[310250934,1704424239964,-1455.37606278,0.00035,14]
[310250936,1704424239973,-333.29953004,0.00035,4]
[310250938,1704424239982,-590.45108746,0.00035,2]
[310250940,1704424239992,-3540.84651895,0.00035,2]
[310250942,1704424240001,-202.413539,0.00035,2]
[310250944,1704424240011,-202.413539,0.00035,2]
[310250946,1704424240021,-202.413539,0.00035,2]
[310250948,1704424240030,-202.413539,0.00035,2]
[310250950,1704424240039,-151.0,0.00035,2]
[310250952,1704424240049,-151.0,0.00035,2]
[310250954,1704424240059,-151.0,0.00035,2]
[310250956,1704424240068,-151.0,0.00035,2]
[310250958,1704424240077,-151.0,0.0003536,2]
[310250960,1704424240086,-700.0,0.00035371,2]
[310250962,1704424240094,-420.0,0.00035371,2]
[310250964,1704424240104,-394.98133963,0.00035371,2]
[310250966,1704424240114,-700.0,0.00035371,2]
[310250968,1704424240123,-444.0,0.00035452,2]
[310250971,1704424240132,-47006.99796797,0.000355,14]
[310250974,1704424240141,-202.413539,0.000355,2]
[310250976,1704424240150,-202.413539,0.000355,2]
[310250978,1704424240160,-151.0,0.000355,2]
[310250980,1704424240169,-151.0,0.000355,2]
[310250982,1704424240178,-207.413588,0.00035616,120]
[310250984,1704424240187,-402.11356515,0.00035793,4]
[310250986,1704424240197,-150.83408251,0.00035794,2]
[310250988,1704424240206,-155.51386368,0.00035794,4]
[310250990,1704424240215,-4000.0,0.00035798,2]
[310250992,1704424240225,-153.0,0.0003583,2]
[310250993,1704424240237,-380.23977679,0.00036,4]
[310250995,1704424240247,-500.0,0.00036,7]
[310250997,1704424240256,-175.0,0.00036,2]
[310250999,1704424240265,-280.0,0.00036031,15]
[310251001,1704424240274,-153.0,0.00036789,2]
[310251003,1704424240283,-153.0,0.00036789,2]
[310251005,1704424240292,-153.0,0.00036789,2]
[310251007,1704424240302,-153.0,0.00036789,2]
[310251009,1704424240311,-151.0,0.00036949,2]
[310251011,1704424240320,-250.0,0.00036949,2]
[310251013,1704424240329,-5473.44,0.00037,2]
[310251015,1704424240338,-6000.0,0.00037,2]
[310251017,1704424240347,-4209.5776207,0.00037,7]
[310251019,1704424240357,-155.0,0.00037,2]
[310251021,1704424240366,-500.0,0.00037,7]
[310251023,1704424240375,-167.91,0.00037,2]
[310251025,1704424240384,-167.91,0.00037,2]
[310251027,1704424240394,-167.91,0.00037,2]
[310251029,1704424240403,-167.91,0.00037,2]
[310251031,1704424240412,-167.91,0.00037,2]
[310251033,1704424240422,-167.91,0.00037,2]
[310251035,1704424240431,-167.91,0.00037,2]
[310251037,1704424240441,-167.91,0.00037,2]
[310251039,1704424240451,-167.91,0.00037,2]
[310251041,1704424240460,-167.91,0.00037,2]
[310251043,1704424240469,-167.91,0.00037,2]
[310251045,1704424240478,-167.91,0.00037,2]
[310251047,1704424240488,-167.91,0.00037,2]
[310251049,1704424240496,-167.91,0.00037,2]
[310251051,1704424240505,-167.91,0.00037,2]
[310251052,1704424240514,-167.91,0.00037,2]
[310251054,1704424240523,-167.91,0.00037,2]
[310251056,1704424240532,-167.91,0.00037,2]
[310251058,1704424240541,-167.91,0.00037,2]
[310251060,1704424240551,-167.91,0.00037,2]
[310251062,1704424240560,-4000.0,0.00037075,2]
[310251064,1704424240569,-620.00012186,0.00037104,2]
[310251066,1704424240578,-6000.0,0.0003718,2]
[310251068,1704424240588,-6000.0,0.0003736,2]
[310251070,1704424240597,-202.413539,0.00037379,2]
[310251072,1704424240606,-202.413539,0.00037379,2]
[310251073,1704424240616,-151.0,0.00037379,2]
[310251075,1704424240625,-151.0,0.00037379,2]
[310251077,1704424240634,-75563.17162275,0.00037379,2]
[310251079,1704424240644,-175.0,0.00037397,2]
[310251081,1704424240652,-1544.11,0.0003754,2]
[310251083,1704424240661,-2031.42117545,0.00037668,2]
[310251085,1704424240671,-2667.09318934,0.00037668,2]
[310251087,1704424240681,-4184.20842677,0.0003777,30]
[310251089,1704424240691,-483.1332532,0.0003779,5]
[310251091,1704424240701,-854.00197275,0.00037888,4]
[310251093,1704424240711,-1029.73603327,0.00037888,4]
[310251095,1704424240720,-7092.70665834,0.00037888,2]
[310251097,1704424240730,-1501.54167584,0.00037889,2]
[310251099,1704424240739,-202.413539,0.0003789,2]
[310251101,1704424240748,-202.413539,0.0003789,2]
[310251102,1704424240758,-1378.70159383,0.00037898,4]
[310251104,1704424240767,-26404.06968772,0.000379,3]
[310251106,1704424240776,-151.0,0.000379,2]
[310251108,1704424240786,-23456.96946626,0.00037955,15]
[310251110,1704424240796,-271.11812341,0.00037988,4]
[310251112,1704424240805,-569.25315621,0.00037988,4]
[310251114,1704424240815,-1196.80540137,0.00037988,4]
[310251116,1704424240824,-155.46366919,0.00037989,4]
[310251118,1704424240835,-43133.01216565,0.0003799,4]
[310251122,1704424240845,-202.413539,0.0003799,2]
[310251125,1704424240854,-202.413531,0.0003799,2]
[310251127,1704424240863,-215.509158,0.0003799,2]
[310251130,1704424240872,-151.0,0.0003799,2]
[310251133,1704424240880,-1627.02208396,0.00037998,4]
[310251135,1704424240890,-193445.69536884,0.00038,10]
[310251138,1704424240898,-5432.20128895,0.00038,30]
[310251140,1704424240908,-2130.31060018,0.00038,4]
[310251143,1704424240920,-379.58002868,0.00038,4]
[310251147,1704424240930,-1492.63446283,0.00038,120]
[310251149,1704424240939,-42082.93692186,0.00038,30]
[310251150,1704424240948,-193550.02085095,0.00038,10]
[310251152,1704424240957,-150.0,0.00038,12]
[310251154,1704424240967,-2000.0,0.00038,12]
[310251156,1704424240976,-500.0,0.00038,7]
[310251158,1704424240985,-151.0,0.00038,2]
[310251160,1704424240995,-265.647862,0.00038,2]
[310251162,1704424241004,-2000.0,0.0003801,12]
[310251164,1704424241013,-2000.0,0.0003802,12]
[310251166,1704424241023,-2000.0,0.0003803,12]
[310251168,1704424241032,-2000.0,0.0003804,12]
[310251170,1704424241040,-2000.0,0.0003805,12]
[310251172,1704424241052,-2000.0,0.0003806,12]
[310251174,1704424241061,-2000.0,0.0003807,12]
[310251176,1704424241071,-2000.0,0.0003808,12]
[310251178,1704424241080,-317.8338195,0.00038082,2]
[310251180,1704424241089,-2000.0,0.0003809,12]
[310251182,1704424241098,-2000.0,0.000381,12]
[310251184,1704424241107,-2000.0,0.0003811,12]
[310251186,1704424241116,-2000.0,0.0003812,13]
[310251188,1704424241126,-2000.0,0.0003813,13]
[310251190,1704424241135,-2000.0,0.0003814,13]
[310251192,1704424241144,-151.0,0.00038145,2]
[310251194,1704424241154,-3901.49749,0.0003815,13]
[310251196,1704424241164,-300.0,0.000383,20]
[310251198,1704424241174,-4000.0,0.00038352,2]
[310251200,1704424241183,-72503.28623183,0.00038353,2]
[310251201,1704424241192,-1606.58123388,0.00038356,7]
[310251203,1704424241201,-500.0,0.00038356,7]
[310251205,1704424241211,-200.77731642,0.00038356,7]
[310251208,1704424241222,-500.0,0.00038356,7]
[310251209,1704424241233,-502.89783528,0.00038356,7]
[310251211,1704424241244,-502.6004063,0.00038356,7]
[310251213,1704424241254,-500.0,0.00038356,7]
[310251215,1704424241263,-500.0,0.00038356,7]
[310251217,1704424241272,-500.0,0.00038356,7]
[310251219,1704424241281,-500.0,0.00038356,7]
[310251221,1704424241291,-500.0,0.00038356,7]
[310251223,1704424241300,-196.26009615,0.00038356,7]
[310251225,1704424241309,-557.98806851,0.00038356,7]
[310251227,1704424241319,-500.0,0.00038356,7]
[310251229,1704424241328,-500.0,0.00038356,7]
[310251231,1704424241337,-500.0,0.00038356,7]
[310251233,1704424241346,-500.0,0.00038356,7]
[310251235,1704424241355,-500.0,0.00038356,7]
[310251237,1704424241365,-633.74643341,0.00038356,7]
[310251239,1704424241374,-500.0,0.00038356,7]
[310251241,1704424241384,-500.0,0.00038356,7]
[310251243,1704424241394,-500.0,0.00038356,7]
[310251245,1704424241404,-500.0,0.00038356,7]
[310251247,1704424241413,-5000.0,0.00038356,10]
[310251249,1704424241423,-500.0,0.00038356,7]
[310251251,1704424241433,-500.0,0.00038356,7]
[310251253,1704424241444,-500.0,0.00038356,7]
[310251255,1704424241456,-500.0,0.00038356,7]
[310251257,1704424241466,-500.0,0.00038356,7]
[310251259,1704424241475,-429.65278159,0.00038356,2]
[310251261,1704424241485,-500.0,0.00038356,7]
[310251263,1704424241494,-500.0,0.00038356,7]
[310251265,1704424241503,-502.02540183,0.00038356,7]
[310251267,1704424241513,-500.0,0.00038356,7]
[310251269,1704424241522,-691.5,0.00038356,7]
[310251271,1704424241531,-421.25992368,0.00038356,7]
[310251273,1704424241540,-500.77147958,0.00038356,7]
[310251275,1704424241551,-567.15,0.00038356,7]
[310251277,1704424241560,-500.0,0.00038356,7]
[310251279,1704424241569,-500.0,0.00038356,7]
[310251281,1704424241579,-500.0,0.00038356,2]
[310251283,1704424241588,-282.08896667,0.00038356,7]
[310251284,1704424241597,-500.0,0.00038356,7]
[310251286,1704424241606,-500.0,0.00038356,7]
[310251288,1704424241615,-236.41050831,0.00038356,7]
[310251290,1704424241625,-500.0,0.00038356,7]
[310251292,1704424241633,-502.91578922,0.00038356,7]
[310251294,1704424241643,-500.0,0.00038356,2]
[310251296,1704424241652,-505.75189974,0.00038356,7]
[310251298,1704424241661,-500.0,0.00038356,7]
[310251300,1704424241671,-500.0,0.00038356,7]
[310251302,1704424241680,-851.13,0.00038356,7]
[310251304,1704424241689,-500.0,0.00038356,7]
[310251306,1704424241699,-500.0,0.00038356,7]
[310251308,1704424241708,-500.0,0.00038356,7]
[310251310,1704424241718,-220.0,0.00038356,2]
[310251312,1704424241728,-500.0,0.00038356,7]
[310251314,1704424241738,-500.0,0.00038356,7]
[310251316,1704424241747,-500.0,0.00038356,7]
[310251318,1704424241759,-500.0,0.00038356,7]
[310251320,1704424241768,-500.0,0.00038356,7]
[310251322,1704424241778,-503.24832999,0.00038356,7]
[310251324,1704424241787,-500.0,0.00038356,7]
[310251327,1704424241826,-500.39403629,0.00038356,7]
[310251328,1704424241835,-590.74746481,0.00038356,7]
[310251330,1704424241846,-500.13414524,0.00038356,2]
[310251332,1704424241856,-500.0,0.00038356,7]
[310251335,1704424241866,-500.0,0.00038356,7]
[310251336,1704424241875,-500.0,0.00038356,7]
[310251338,1704424241885,-500.0,0.00038356,7]
[310251340,1704424241894,-520.03574021,0.00038356,7]
[310251342,1704424241904,-500.0,0.00038356,7]
[310251344,1704424241915,-500.0,0.00038356,7]
[310251346,1704424241924,-500.0,0.00038356,7]
[310251348,1704424241933,-500.0,0.00038356,7]
[310251350,1704424241942,-500.0,0.00038356,7]
[310251352,1704424241951,-500.0,0.00038356,7]
[310251354,1704424241960,-500.0,0.00038356,7]
[310251356,1704424241969,-1642.96,0.00038356,7]
[310251367,1704424242065,-500.0,0.00038356,7]
[310251369,1704424242075,-500.0,0.00038356,7]
[310251371,1704424242085,-507.75525626,0.00038356,7]
[310251373,1704424242096,-605.09047325,0.00038356,7]
[310251375,1704424242106,-638.8500626,0.00038356,7]
[310251377,1704424242116,-508.45699376,0.00038356,7]
[310251379,1704424242125,-500.0,0.00038356,7]
[310251381,1704424242136,-500.0,0.00038356,7]
[310251383,1704424242146,-500.0,0.00038356,7]
[310251385,1704424242155,-500.0,0.00038356,7]
[310251387,1704424242165,-523.01014034,0.00038356,7]
[310251389,1704424242175,-500.0,0.00038356,7]
[310251391,1704424242184,-500.0,0.00038356,7]
[310251393,1704424242194,-500.0,0.00038356,7]
[310251395,1704424242204,-500.0,0.00038356,7]
[310251397,1704424242215,-500.0,0.00038356,7]
[310251399,1704424242227,-511.94485865,0.00038356,7]
[310251401,1704424242237,-501.81500255,0.00038356,7]
[310251403,1704424242247,-503.54003314,0.00038356,7]
[310251405,1704424242258,-529.47366652,0.00038356,7]
[310251407,1704424242267,-504.94134702,0.00038356,7]
[310251409,1704424242277,-500.77574628,0.00038356,7]
[310251411,1704424242286,-635.52,0.00038356,7]
[310251413,1704424242297,-500.0,0.00038356,7]
[310251415,1704424242307,-500.0,0.00038356,7]
[310251417,1704424242317,-503.15989651,0.00038356,7]
[310251419,1704424242327,-500.0,0.00038356,7]
[310251421,1704424242338,-500.0,0.00038356,7]
[310251423,1704424242349,-500.0,0.00038356,7]
[310251425,1704424242359,-500.0,0.00038356,7]
[310251427,1704424242369,-500.0,0.00038356,7]
[310251429,1704424242379,-500.0,0.00038356,7]
[310251431,1704424242389,-511.47532411,0.00038356,7]
[310251433,1704424242399,-500.0,0.00038356,7]
[310251435,1704424242409,-500.0,0.00038356,7]
[310251437,1704424242419,-500.0,0.00038356,7]
[310251439,1704424242428,-500.0,0.00038356,7]
[310251441,1704424242438,-500.0,0.00038356,7]
[310251443,1704424242447,-511.13138698,0.00038356,7]
[310251444,1704424242457,-500.0,0.00038356,7]
[310251447,1704424242467,-615.48411146,0.00038356,7]
[310251449,1704424242477,-202.19447337,0.00038356,7]
[310251450,1704424242486,-500.0,0.00038356,7]
[310251452,1704424242497,-500.0,0.00038356,7]
[310251454,1704424242508,-500.0,0.00038356,7]
[310251456,1704424242518,-500.0,0.00038356,7]
[310251459,1704424242530,-593.41513569,0.00038356,7]
[310251460,1704424242539,-982.7,0.00038356,7]
[310251462,1704424242549,-500.0,0.00038356,7]
[310251464,1704424242559,-500.0,0.00038356,7]
[310251467,1704424242571,-500.0,0.00038356,7]
[310251469,1704424242581,-500.0,0.00038356,7]
[310251471,1704424242592,-502.49691639,0.00038356,7]
[310251473,1704424242603,-500.0,0.00038356,7]
[310251475,1704424242613,-1418.34,0.00038356,7]
[310251477,1704424242623,-500.0,0.00038356,7]
[310251478,1704424242634,-253.24683452,0.00038356,7]
[310251480,1704424242644,-500.0,0.00038356,7]
[310251482,1704424242657,-500.0,0.00038356,7]
[310251484,1704424242668,-500.0,0.00038356,2]
[310251487,1704424242679,-500.0,0.00038356,7]
[310251488,1704424242689,-500.95883747,0.00038356,7]
[310251491,1704424242701,-225.50458298,0.00038356,2]
[310251493,1704424242711,-500.0,0.00038356,7]
[310251494,1704424242722,-500.0,0.00038356,7]
[310251496,1704424242732,-1374.22,0.00038356,2]
[310251498,1704424242741,-500.0,0.00038356,7]
[310251499,1704424242750,-505.77352148,0.00038356,7]
[310251500,1704424242759,-500.0,0.00038356,7]
[310251501,1704424242769,-639.80127256,0.00038356,7]
[310251502,1704424242779,-500.0,0.00038356,7]
[310251503,1704424242790,-500.0,0.00038356,7]
[310251504,1704424242802,-500.0,0.00038356,7]
[310251505,1704424242812,-500.0,0.00038356,2]
[310251506,1704424242823,-500.0,0.00038356,7]
[310251507,1704424242833,-500.0,0.00038356,7]
[310251508,1704424242844,-500.0,0.00038356,7]
[310251509,1704424242855,-1396.2,0.00038356,7]
[310251510,1704424242866,-500.0,0.00038356,7]
[310251511,1704424242876,-500.0,0.00038356,7]
[310251512,1704424242886,-500.0,0.00038356,7]
[310251513,1704424242898,-500.0,0.00038356,7]
[310251514,1704424242909,-501.9154319,0.00038356,7]
[310251515,1704424242919,-500.0,0.00038356,30]
[310251516,1704424242929,-500.0,0.00038356,7]
[310251518,1704424242939,-500.0,0.00038356,7]
[310251519,1704424242950,-500.0,0.00038356,7]
[310251521,1704424242960,-634.16555668,0.00038356,7]
[310251524,1704424242970,-500.0,0.00038356,7]
[310251525,1704424242980,-512.41003508,0.00038356,7]
[310251527,1704424242991,-500.0,0.00038356,7]
[310251529,1704424243000,-354.64078879,0.00038356,7]
[310251531,1704424243009,-563.39752874,0.00038356,7]
[310251533,1704424243018,-500.0,0.00038356,7]
[310251535,1704424243027,-557.58115586,0.00038356,7]
[310251537,1704424243036,-500.0,0.00038356,7]
[310251539,1704424243046,-500.0,0.00038356,7]
[310251541,1704424243056,-519.45420278,0.00038356,7]
[310251543,1704424243065,-500.0,0.00038356,7]
[310251545,1704424243075,-500.0,0.00038356,7]
[310251547,1704424243086,-500.0,0.00038356,7]
[310251549,1704424243095,-500.0,0.00038356,7]
[310251551,1704424243104,-1000.0,0.00038356,2]
[310251553,1704424243114,-500.0,0.00038356,7]
[310251555,1704424243124,-500.0,0.00038356,7]
[310251557,1704424243132,-500.0,0.00038356,7]
[310251559,1704424243141,-568.38431352,0.00038356,7]
[310251561,1704424243151,-500.0,0.00038356,7]
[310251563,1704424243160,-593.89,0.00038356,7]
[310251565,1704424243169,-500.0,0.00038356,7]
[310251567,1704424243178,-500.0,0.00038356,7]
[310251569,1704424243187,-500.0,0.00038356,7]
[310251571,1704424243196,-500.0,0.00038356,7]
[310251573,1704424243205,-500.0,0.00038356,7]
[310251575,1704424243214,-500.0,0.00038356,7]
[310251577,1704424243223,-500.0,0.00038356,7]
[310251579,1704424243232,-500.0,0.00038356,7]
[310251582,1704424243243,-439.22954614,0.00038356,7]